[Event "Championnat d'Europe Rapide"]
[Date "2024.12.07"]
[White "Domalchuk-Jonasson, Aleksandr"]
[Black "Fedoseev, Vladimir"]
[WhiteElo "2377"]
[BlackElo "2709"]
[Round "2.1"]
[Result "1/2-1/2"]
[TimeControl "900+10"]

1. d4 {[%emt 00:00:01] [%clk 00:15:17]} Nf6 {[%emt 00:00:06] [%clk 00:15:15]} 2.
c4 {[%emt 00:00:03] [%clk 00:15:24]} e6 {[%emt 00:00:03] [%clk 00:15:22]} 3. Nf3
{[%emt 00:00:40] [%clk 00:14:54]} Bb4+ {[%emt 00:00:06] [%clk 00:15:25]} 4. Nbd2
{[%emt 00:00:10] [%clk 00:14:55]} O-O {[%emt 00:00:03] [%clk 00:15:32]} 5. g3
{[%emt 00:00:28] [%clk 00:14:37]} b6 {[%emt 00:00:49] [%clk 00:14:53]} 6. Bg2
{[%emt 00:00:44] [%clk 00:14:03]} Bb7 {[%emt 00:00:01] [%clk 00:15:02]} 7. O-O
{[%emt 00:00:12] [%clk 00:14:02]} Be7 {[%emt 00:00:03] [%clk 00:15:08]} 8. Re1
{[%emt 00:01:02] [%clk 00:13:10]} d5 {[%emt 00:01:27] [%clk 00:13:51]} 9. cxd5
{[%emt 00:00:17] [%clk 00:13:04]} Nxd5 {[%emt 00:00:14] [%clk 00:13:46]} 10. a3
{[%emt 00:01:37] [%clk 00:11:38]} Nd7 {[%emt 00:00:26] [%clk 00:13:30]} 11. Nc4
{[%emt 00:01:34] [%clk 00:10:13]} c5 {[%emt 00:02:57] [%clk 00:10:43]} 12. e4
{[%emt 00:02:30] [%clk 00:07:53]} N5f6 {[%emt 00:00:03] [%clk 00:10:50]} 13. e5
{[%emt 00:00:04] [%clk 00:08:00]} Nd5 {[%emt 00:00:38] [%clk 00:10:22]} 14. dxc5
{[%emt 00:00:27] [%clk 00:07:42]} Nxc5 {[%emt 00:01:11] [%clk 00:09:22]} 15. b4
{[%emt 00:00:20] [%clk 00:07:32]} Ba6 {[%emt 00:01:14] [%clk 00:08:18]} 16. Nb2
{[%emt 00:02:13] [%clk 00:05:29]} Nd7 {[%emt 00:00:30] [%clk 00:07:58]} 17. Qa4
{[%emt 00:01:34] [%clk 00:04:05]} Bb7 {[%emt 00:00:14] [%clk 00:07:55]} 18. Qb3
{[%emt 00:02:05] [%clk 00:02:11]} a5 {[%emt 00:02:13] [%clk 00:05:51]} 19. Bd2
{[%emt 00:00:04] [%clk 00:02:17]} Ra7 {[%emt 00:00:02] [%clk 00:06:00]} 20. Nc4
{[%emt 00:00:39] [%clk 00:01:47]} Qa8 {[%emt 00:00:54] [%clk 00:05:16]} 21. Rac1
{[%emt 00:00:30] [%clk 00:01:27]} axb4 {[%emt 00:00:39] [%clk 00:04:47]} 22.
axb4 {[%emt 00:00:01] [%clk 00:01:36]} Nxb4 {[%emt 00:01:26] [%clk 00:03:31]}
23. Bxb4 {[%emt 00:01:04] [%clk 00:00:43]} Bxb4 {[%emt 00:00:01] [%clk
00:03:39]} 24. Qxb4 {[%emt 00:00:03] [%clk 00:00:49]} Bxf3 {[%emt 00:00:01]
[%clk 00:03:48]} 25. Nxb6 {[%emt 00:00:05] [%clk 00:00:55]} Qb8 {[%emt 00:02:28]
[%clk 00:01:31]} 26. Bxf3 {[%emt 00:00:05] [%clk 00:00:59]} Qxb6 {[%emt
00:00:01] [%clk 00:01:40]} 27. Qxb6 {[%emt 00:00:10] [%clk 00:00:59]} Nxb6
{[%emt 00:00:01] [%clk 00:01:49]} 28. Bg2 {[%emt 00:00:39] [%clk 00:00:30]} g5
{[%emt 00:00:02] [%clk 00:01:57]} 29. Re4 {[%emt 00:00:12] [%clk 00:00:28]} h6
{[%emt 00:00:01] [%clk 00:02:06]} 30. h4 {[%emt 00:00:01] [%clk 00:00:37]} Ra5
{[%emt 00:00:35] [%clk 00:01:41]} 31. hxg5 {[%emt 00:00:04] [%clk 00:00:42]}
hxg5 {[%clk 00:01:50]} 32. Rce1 {[%emt 00:00:23] [%clk 00:00:30]} Kh8 {[%clk
00:02:00]} 33. Rg4 {[%emt 00:00:08] [%clk 00:00:32]} Rg8 {[%clk 00:02:09]} 34.
Rd4 {[%emt 00:00:24] [%clk 00:00:19]} Rc5 {[%emt 00:00:04] [%clk 00:02:15]} 35.
Bf1 {[%emt 00:00:15] [%clk 00:00:13]} Kg7 {[%clk 00:02:24]} 36. Kg2 {[%emt
00:00:02] [%clk 00:00:21]} Nd5 {[%emt 00:00:36] [%clk 00:01:58]} 37. Rc4 {[%emt
00:00:07] [%clk 00:00:24]} Rxc4 {[%emt 00:00:33] [%clk 00:01:35]} 38. Bxc4
{[%emt 00:00:01] [%clk 00:00:33]} Ne7 {[%emt 00:00:12]} 39. f4 {[%clk 00:00:33]}
Rc8 {[%emt 00:00:14] [%clk 00:01:40]} 40. Bd3 {[%emt 00:00:10] [%clk 00:00:32]}
Rc3 {[%emt 00:00:38] [%clk 00:01:12]} 41. Be4 {[%emt 00:00:02] [%clk 00:00:40]}
Ng6 {[%emt 00:00:15] [%clk 00:01:07]} 42. Rf1 {[%emt 00:00:32] [%clk 00:00:18]}
Re3 {[%emt 00:00:23] [%clk 00:00:53]} 43. Bb1 {[%emt 00:00:13] [%clk 00:00:15]}
Ne7 {[%emt 00:00:07] [%clk 00:00:55]} 44. Kf2 {[%emt 00:00:25]} Rb3 {[%clk
00:00:43]} 45. Be4 {[%emt 00:00:05] [%clk 00:00:27]} Ng6 {[%emt 00:00:03] [%clk
00:00:50]} 46. Kg2 {[%emt 00:00:14] [%clk 00:00:23]} Re3 {[%emt 00:00:02] [%clk
00:00:58]} 47. Bb1 {[%emt 00:00:01] [%clk 00:00:32]} gxf4 {[%emt 00:00:45] [%clk
00:00:23]} 48. gxf4 {[%clk 00:00:41]} Nh4+ {[%emt 00:00:01] [%clk 00:00:32]} 49.
Kf2 {[%emt 00:00:08] [%clk 00:00:43]} Rf3+ {[%emt 00:00:03] [%clk 00:00:39]} 50.
Ke2 {[%emt 00:00:06] [%clk 00:00:48]} Rh3 {[%emt 00:00:29] [%clk 00:00:19]} 51.
Be4 {[%emt 00:00:10] [%clk 00:00:47]} Kh6 {[%emt 00:00:05] [%clk 00:00:25]} 52.
Rg1 {[%emt 00:00:34] [%clk 00:00:23]} Rh2+ {[%emt 00:00:14] [%clk 00:00:21]} 53.
Ke3 {[%emt 00:00:05] [%clk 00:00:28]} Rh3+ {[%emt 00:00:03] [%clk 00:00:28]} 54.
Ke2 {[%emt 00:00:02] [%clk 00:00:35]} Ng6 {[%emt 00:00:19] [%clk 00:00:19]} 55.
Bxg6 {[%emt 00:00:02] [%clk 00:00:43]} fxg6 {[%emt 00:00:01] [%clk 00:00:29]}
56. Kf2 {[%emt 00:00:05] [%clk 00:00:48]} Rh5 {[%emt 00:00:06] [%clk 00:00:33]}
57. Kf3 {[%emt 00:00:06] [%clk 00:00:52]} g5 {[%emt 00:00:04] [%clk 00:00:39]}
58. fxg5+ {[%emt 00:00:03] [%clk 00:00:59]} Rxg5 {[%emt 00:00:01] [%clk
00:00:48]} 59. Rh1+ {[%emt 00:00:05] [%clk 00:01:04]} Kg6 {[%emt 00:00:02] [%clk
00:00:56]} 60. Ke4 {[%emt 00:00:07]} 1/2-1/2

[Site "Europe Echecs"]

[Event "Championnat d'Europe Rapide"]
[Date "2024.12.07"]
[White "Navara, David"]
[Black "Trushko, Andrii"]
[WhiteElo "2665"]
[BlackElo "2143"]
[Round "2.2"]
[Result "1-0"]
[TimeControl "900+10"]

1. d4 {[%emt 00:00:01] [%clk 00:15:19]} Nf6 {[%emt 00:00:03] [%clk 00:15:17]} 2.
c4 {[%emt 00:00:03] [%clk 00:15:28]} e6 {[%emt 00:00:02] [%clk 00:15:23]} 3. Nc3
{[%emt 00:00:02] [%clk 00:15:36]} d5 {[%emt 00:00:08] [%clk 00:15:29]} 4. cxd5
{[%clk 00:15:44]} exd5 {[%clk 00:15:36]} 5. Bg5 {[%emt 00:00:02] [%clk
00:15:52]} Be7 {[%emt 00:00:14] [%clk 00:15:33]} 6. e3 {[%emt 00:00:03] [%clk
00:15:59]} c6 {[%emt 00:00:18] [%clk 00:15:24]} 7. Bd3 {[%emt 00:00:17] [%clk
00:15:52]} Nbd7 {[%emt 00:00:05] [%clk 00:15:29]} 8. Nf3 {[%emt 00:00:34] [%clk
00:15:29]} h6 {[%emt 00:00:08] [%clk 00:15:30]} 9. Bh4 {[%emt 00:00:25] [%clk
00:15:14]} Ne4 {[%emt 00:01:17] [%clk 00:14:24]} 10. Bxe7 {[%emt 00:00:07] [%clk
00:15:17]} Qxe7 {[%emt 00:00:17] [%clk 00:14:18]} 11. Qc2 {[%emt 00:00:11] [%clk
00:15:16]} Nxc3 {[%emt 00:00:40] [%clk 00:13:48]} 12. bxc3 {[%emt 00:00:32]
[%clk 00:14:53]} O-O {[%emt 00:00:41] [%clk 00:13:17]} 13. O-O {[%emt 00:00:12]
[%clk 00:14:51]} c5 {[%emt 00:02:09] [%clk 00:11:18]} 14. a4 {[%emt 00:00:50]
[%clk 00:14:10]} b6 {[%emt 00:01:53] [%clk 00:09:36]} 15. a5 {[%emt 00:01:41]
[%clk 00:12:39]} c4 {[%emt 00:01:54] [%clk 00:07:52]} 16. Bh7+ {[%emt 00:00:02]
[%clk 00:12:46]} Kh8 {[%emt 00:00:02] [%clk 00:08:01]} 17. axb6 {[%emt 00:00:06]
[%clk 00:12:50]} Nf6 {[%emt 00:00:40] [%clk 00:07:32]} 18. Rxa7 {[%emt 00:05:30]
[%clk 00:07:29]} Rxa7 {[%emt 00:00:15] [%clk 00:07:27]} 19. bxa7 {[%emt
00:00:02] [%clk 00:07:37]} Qxa7 {[%emt 00:00:03] [%clk 00:07:35]} 20. Bf5 {[%emt
00:00:01] [%clk 00:07:45]} Bxf5 {[%emt 00:00:12] [%clk 00:07:34]} 21. Qxf5
{[%emt 00:00:02] [%clk 00:07:52]} Qa3 {[%emt 00:04:48] [%clk 00:02:56]} 22. g4
{[%emt 00:00:01] [%clk 00:08:01]} Qxc3 {[%emt 00:00:35] [%clk 00:02:32]} 23. h4
{[%emt 00:00:01] [%clk 00:08:09]} Qd3 {[%emt 00:02:07] [%clk 00:00:35]} 24. Qxd3
{[%emt 00:00:02] [%clk 00:08:17]} cxd3 {[%emt 00:00:01] [%clk 00:00:43]} 25. Ne5
{[%emt 00:00:02] [%clk 00:08:25]} Kg8 {[%emt 00:00:11] [%clk 00:00:42]} 26. f3
{[%emt 00:01:10] [%clk 00:07:25]} Rc8 {[%emt 00:00:16] [%clk 00:00:36]} 27. Nxd3
{[%emt 00:00:12] [%clk 00:07:22]} Rc3 {[%emt 00:00:03] [%clk 00:00:43]} 28. Rd1
{[%emt 00:00:02] [%clk 00:07:31]} Ra3 {[%emt 00:00:33] [%clk 00:00:20]} 29. Kf2
{[%emt 00:00:33] [%clk 00:07:07]} Ra2+ {[%emt 00:00:06] [%clk 00:00:25]} 30. Kg3
{[%emt 00:00:01] [%clk 00:07:15]} g5 {[%emt 00:00:14] [%clk 00:00:21]} 31. Ne5
{[%emt 00:01:33] [%clk 00:05:52]} Re2 {[%emt 00:00:12] [%clk 00:00:20]} 32. Ra1
{[%emt 00:01:40] [%clk 00:04:21]} Rxe3 {[%emt 00:00:07] [%clk 00:00:23]} 33. Kf2
{[%emt 00:00:12] [%clk 00:04:19]} Rb3 {[%emt 00:00:07] [%clk 00:00:26]} 34. Ra8+
{[%emt 00:00:09] [%clk 00:04:21]} Kg7 {[%emt 00:00:02] [%clk 00:00:34]} 35. Ra7
{[%emt 00:00:02] [%clk 00:04:29]} Ne8 {[%emt 00:00:07] [%clk 00:00:37]} 36.
Rxf7+ {[%emt 00:00:07] [%clk 00:04:32]} Kg8 {[%emt 00:00:02] [%clk 00:00:45]}
37. hxg5 {[%emt 00:00:06] [%clk 00:04:36]} hxg5 {[%emt 00:00:02] [%clk
00:00:53]} 38. Rf5 {[%emt 00:00:01] [%clk 00:04:44]} Nc7 {[%emt 00:00:09] [%clk
00:00:55]} 39. Rxg5+ {[%emt 00:00:05] [%clk 00:04:49]} Kf8 {[%emt 00:00:05]
[%clk 00:00:59]} 40. Ng6+ {[%emt 00:00:48] [%clk 00:04:12]} Kf7 {[%emt 00:00:55]
[%clk 00:00:14]} 41. Nf4 {[%emt 00:00:03] [%clk 00:04:19]} Rb2+ {[%emt 00:00:02]
[%clk 00:00:22]} 42. Kg3 {[%emt 00:00:04] [%clk 00:04:25]} Rd2 {[%emt 00:00:02]
[%clk 00:00:30]} 43. Rf5+ {[%emt 00:00:24] [%clk 00:04:10]} Kg7 {[%emt 00:00:06]
[%clk 00:00:34]} 44. Re5 {[%emt 00:01:39] [%clk 00:02:41]} Kf7 {[%emt 00:00:32]
[%clk 00:00:13]} 45. g5 {[%emt 00:00:56] [%clk 00:01:54]} Rxd4 {[%emt 00:00:06]
[%clk 00:00:18]} 46. g6+ {[%emt 00:00:01] [%clk 00:02:02]} Kg8 {[%emt 00:00:13]
[%clk 00:00:15]} 47. Re7 {[%emt 00:00:03] [%clk 00:02:10]} Rc4 {[%emt 00:00:14]
[%clk 00:00:11]} 48. Kg4 {[%emt 00:01:02] [%clk 00:01:18]} Kf8 {[%emt 00:00:04]
[%clk 00:00:17]} 49. Rxc7 {[%emt 00:00:56] [%clk 00:00:31]} 1-0

[Site "Europe Echecs"]

[Event "Championnat d'Europe Rapide"]
[Date "2024.12.07"]
[White "Manea, Alexandru"]
[Black "Santos Latasa, Jaime"]
[WhiteElo "2272"]
[BlackElo "2628"]
[Round "2.3"]
[Result "0-1"]
[TimeControl "900+10"]

1. e4 {[%emt 00:00:37] [%clk 00:14:43]} c5 {[%emt 00:00:09] [%clk 00:15:12]} 2.
Nf3 {[%emt 00:00:03] [%clk 00:14:49]} e6 {[%emt 00:00:05] [%clk 00:15:17]} 3. d4
{[%emt 00:00:02] [%clk 00:14:57]} cxd4 {[%emt 00:00:02] [%clk 00:15:26]} 4. Nxd4
{[%clk 00:15:06]} Nc6 {[%emt 00:00:01] [%clk 00:15:35]} 5. Nc3 {[%emt 00:00:01]
[%clk 00:15:15]} Qc7 {[%clk 00:15:44]} 6. Qd3 {[%emt 00:00:03] [%clk 00:15:22]}
Nf6 {[%emt 00:00:06] [%clk 00:15:48]} 7. Ndb5 {[%emt 00:00:04] [%clk 00:15:28]}
Qb8 {[%emt 00:00:02] [%clk 00:15:57]} 8. Qg3 {[%emt 00:00:02] [%clk 00:15:35]}
d6 {[%emt 00:00:04] [%clk 00:16:04]} 9. Be3 {[%emt 00:00:10] [%clk 00:15:35]} a6
{[%emt 00:00:05] [%clk 00:16:09]} 10. Nd4 {[%emt 00:00:01] [%clk 00:15:43]} Bd7
{[%emt 00:00:25] [%clk 00:15:54]} 11. O-O-O {[%emt 00:00:59] [%clk 00:14:54]} h5
{[%emt 00:00:08] [%clk 00:15:57]} 12. f3 {[%emt 00:00:08] [%clk 00:14:55]} h4
{[%emt 00:01:11] [%clk 00:14:56]} 13. Qf2 {[%emt 00:00:02] [%clk 00:15:04]} Ne5
{[%emt 00:00:01] [%clk 00:15:05]} 14. h3 {[%emt 00:02:16] [%clk 00:12:57]} b5
{[%emt 00:00:40] [%clk 00:14:35]} 15. f4 {[%emt 00:00:18] [%clk 00:12:50]} b4
{[%emt 00:00:14] [%clk 00:14:31]} 16. fxe5 {[%emt 00:02:52] [%clk 00:10:07]}
bxc3 {[%emt 00:00:13] [%clk 00:14:29]} 17. bxc3 {[%emt 00:00:49] [%clk
00:09:27]} dxe5 {[%emt 00:00:36] [%clk 00:14:03]} 18. Nb3 {[%emt 00:00:01] [%clk
00:09:36]} Ba3+ {[%emt 00:00:21] [%clk 00:13:53]} 19. Kb1 {[%emt 00:00:01] [%clk
00:09:45]} a5 {[%emt 00:00:49] [%clk 00:13:13]} 20. Bd3 {[%emt 00:00:49] [%clk
00:09:07]} a4 {[%emt 00:00:11] [%clk 00:13:12]} 21. Bg5 {[%clk 00:09:16]} Be7
{[%emt 00:00:28] [%clk 00:12:54]} 22. Rhe1 {[%emt 00:00:15] [%clk 00:09:11]}
axb3 {[%emt 00:00:16] [%clk 00:12:48]} 23. cxb3 {[%clk 00:09:20]} Qa7 {[%emt
00:00:42] [%clk 00:12:16]} 24. Qxa7 {[%emt 00:00:57] [%clk 00:08:33]} Rxa7
{[%emt 00:00:02] [%clk 00:12:24]} 25. Be3 {[%emt 00:00:02] [%clk 00:08:41]} Ra8
{[%emt 00:00:02] [%clk 00:12:32]} 26. a4 {[%emt 00:00:08] [%clk 00:08:43]} Bc6
{[%emt 00:00:25] [%clk 00:12:17]} 27. Bf2 {[%emt 00:00:07] [%clk 00:08:45]} Rh6
{[%emt 00:00:50] [%clk 00:11:38]} 28. Rd2 {[%emt 00:00:37] [%clk 00:08:18]} Nh5
{[%emt 00:00:49] [%clk 00:10:58]} 29. Bb5 {[%emt 00:00:27] [%clk 00:08:01]} Bxb5
{[%emt 00:00:09] [%clk 00:11:00]} 30. axb5 {[%clk 00:08:10]} Rg6 {[%emt
00:00:19] [%clk 00:10:51]} 31. Be3 {[%emt 00:01:49] [%clk 00:06:29]} Rg3 {[%emt
00:00:13] [%clk 00:10:49]} 32. b4 {[%emt 00:02:02] [%clk 00:04:37]} Rb8 {[%emt
00:00:47] [%clk 00:10:12]} 33. b6 {[%emt 00:00:05] [%clk 00:04:43]} Rxe3 {[%emt
00:01:47] [%clk 00:08:35]} 34. Rxe3 {[%clk 00:04:52]} Bg5 {[%emt 00:00:01] [%clk
00:08:44]} 35. Red3 {[%emt 00:00:01] [%clk 00:05:01]} Bxd2 {[%emt 00:00:02]
[%clk 00:08:52]} 36. Rxd2 {[%clk 00:05:10]} Rxb6 {[%emt 00:00:07] [%clk
00:08:56]} 37. Kc2 {[%emt 00:01:09] [%clk 00:04:11]} Ng3 {[%emt 00:00:02] [%clk
00:09:04]} 38. Kb3 {[%clk 00:04:20]} Nxe4 {[%emt 00:00:15] [%clk 00:08:59]} 39.
Re2 {[%emt 00:00:20] [%clk 00:04:09]} Nc5+ {[%emt 00:01:13] [%clk 00:07:56]} 40.
Kc4 {[%emt 00:00:04] [%clk 00:04:14]} Nd7 {[%emt 00:00:03] [%clk 00:08:05]} 41.
b5 {[%emt 00:00:01] [%clk 00:04:23]} Rd6 {[%emt 00:00:11] [%clk 00:08:04]} 42.
Kb4 {[%emt 00:00:03] [%clk 00:04:29]} Rd1 {[%emt 00:00:22] [%clk 00:07:52]} 43.
Rc2 {[%emt 00:00:12] [%clk 00:04:27]} Ke7 {[%emt 00:00:07] [%clk 00:07:56]} 44.
c4 {[%emt 00:00:01] [%clk 00:04:36]} Kd6 {[%emt 00:00:02] [%clk 00:08:05]} 0-1

[Site "Europe Echecs"]

[Event "Championnat d'Europe Rapide"]
[Date "2024.12.07"]
[White "Sarana, Alexey"]
[Black "Denk, Adolf"]
[WhiteElo "2674"]
[BlackElo "2113"]
[Round "2.4"]
[Result "1-0"]
[TimeControl "900+10"]

1. d4 {[%emt 00:36:02] [%clk 00:15:19]} Nf6 {[%emt 00:00:08] [%clk 00:15:13]} 2.
c4 {[%emt 00:00:02] [%clk 00:15:26]} e6 {[%emt 00:00:13] [%clk 00:15:10]} 3. Nc3
{[%emt 00:00:02] [%clk 00:15:34]} d5 {[%emt 00:00:11] [%clk 00:15:11]} 4. Bg5
{[%emt 00:00:08] [%clk 00:15:35]} Be7 {[%emt 00:00:10] [%clk 00:15:11]} 5. e3
{[%emt 00:00:03] [%clk 00:15:43]} c6 {[%emt 00:00:13] [%clk 00:15:07]} 6. Nf3
{[%emt 00:00:04] [%clk 00:15:48]} dxc4 {[%emt 00:00:19] [%clk 00:14:59]} 7. Bxc4
{[%emt 00:00:01] [%clk 00:15:56]} b5 {[%emt 00:00:03] [%clk 00:15:06]} 8. Bd3
{[%emt 00:00:02] [%clk 00:16:04]} a6 {[%emt 00:00:03] [%clk 00:15:13]} 9. O-O
{[%emt 00:00:51] [%clk 00:15:23]} Qb6 {[%emt 00:01:29] [%clk 00:13:53]} 10. Rc1
{[%emt 00:00:08] [%clk 00:15:26]} Nbd7 {[%emt 00:00:11] [%clk 00:13:53]} 11. Ne4
{[%emt 00:00:12] [%clk 00:15:23]} c5 {[%emt 00:00:35] [%clk 00:13:28]} 12. dxc5
{[%emt 00:01:40] [%clk 00:13:53]} Nxc5 {[%emt 00:00:05] [%clk 00:13:33]} 13.
Nxc5 {[%emt 00:00:14] [%clk 00:13:49]} Bxc5 {[%emt 00:00:04] [%clk 00:13:39]}
14. Ne5 {[%emt 00:00:50] [%clk 00:13:09]} Bb7 {[%emt 00:00:48] [%clk 00:13:02]}
15. Bxf6 {[%emt 00:00:10] [%clk 00:13:08]} gxf6 {[%emt 00:00:06] [%clk
00:13:06]} 16. Bxb5+ {[%emt 00:00:02] [%clk 00:13:16]} 1-0

[Site "Europe Echecs"]

[Event "Championnat d'Europe Rapide"]
[Date "2024.12.07"]
[White "Zawadzka, Jolanta"]
[Black "Van Foreest, Jorden"]
[WhiteElo "2331"]
[BlackElo "2677"]
[Round "2.5"]
[Result "0-1"]
[TimeControl "900+10"]

1. e4 {[%emt 00:00:16] [%clk 00:14:58]} c6 {[%emt 00:00:12] [%clk 00:15:13]} 2.
d4 {[%emt 00:00:10] [%clk 00:14:59]} d5 {[%emt 00:00:02] [%clk 00:15:20]} 3. Nd2
{[%emt 00:00:03] [%clk 00:15:06]} dxe4 {[%emt 00:00:05] [%clk 00:15:25]} 4. Nxe4
{[%emt 00:00:02] [%clk 00:15:14]} Nf6 {[%emt 00:00:06] [%clk 00:15:29]} 5. Nxf6+
{[%emt 00:00:04] [%clk 00:15:21]} exf6 {[%emt 00:00:02] [%clk 00:15:36]} 6. c3
{[%emt 00:00:03] [%clk 00:15:28]} Bd6 {[%emt 00:00:10] [%clk 00:15:36]} 7. Bd3
{[%emt 00:00:04] [%clk 00:15:35]} O-O {[%emt 00:00:04] [%clk 00:15:41]} 8. Ne2
{[%emt 00:00:03] [%clk 00:15:42]} Re8 {[%emt 00:00:17] [%clk 00:15:35]} 9. O-O
{[%emt 00:00:04] [%clk 00:15:47]} Nd7 {[%emt 00:02:20] [%clk 00:13:25]} 10. Bf4
{[%emt 00:00:29] [%clk 00:15:28]} Nf8 {[%emt 00:00:34] [%clk 00:13:01]} 11. Bxd6
{[%emt 00:00:27] [%clk 00:15:11]} Qxd6 {[%emt 00:00:02] [%clk 00:13:09]} 12. Qd2
{[%emt 00:00:05] [%clk 00:15:17]} Ng6 {[%emt 00:00:31] [%clk 00:12:48]} 13. Rae1
{[%emt 00:00:10] [%clk 00:15:17]} Be6 {[%emt 00:00:29] [%clk 00:12:28]} 14. Bb1
{[%emt 00:01:14] [%clk 00:14:13]} Rad8 {[%emt 00:01:11] [%clk 00:11:27]} 15. b3
{[%emt 00:05:45] [%clk 00:08:38]} c5 {[%emt 00:01:40] [%clk 00:09:57]} 16. Rd1
{[%emt 00:00:14] [%clk 00:08:34]} Bg4 {[%emt 00:00:17] [%clk 00:09:49]} 17. f3
{[%emt 00:00:12] [%clk 00:08:32]} Be6 {[%emt 00:00:08] [%clk 00:09:50]} 18. Rfe1
{[%emt 00:00:18] [%clk 00:08:25]} b5 {[%emt 00:01:10] [%clk 00:08:51]} 19. Kh1
{[%emt 00:00:27] [%clk 00:08:07]} Qc7 {[%emt 00:01:07] [%clk 00:07:55]} 20. Qc2
{[%emt 00:00:17] [%clk 00:08:00]} Rd5 {[%emt 00:00:08] [%clk 00:07:57]} 21. Ng3
{[%emt 00:04:02] [%clk 00:04:08]} cxd4 {[%emt 00:00:43] [%clk 00:07:24]} 22.
cxd4 {[%emt 00:00:39] [%clk 00:03:39]} Qb6 {[%emt 00:00:31] [%clk 00:07:02]} 23.
Qf2 {[%emt 00:00:16] [%clk 00:03:33]} Red8 {[%emt 00:00:06] [%clk 00:07:07]} 24.
Ne2 {[%emt 00:00:03] [%clk 00:03:40]} b4 {[%emt 00:00:11] [%clk 00:07:05]} 25.
Rc1 {[%emt 00:00:30] [%clk 00:03:20]} R5d6 {[%emt 00:00:39] [%clk 00:06:37]} 26.
Red1 {[%emt 00:01:11] [%clk 00:02:19]} Ne7 {[%emt 00:00:08] [%clk 00:06:38]} 27.
Qh4 {[%emt 00:00:30] [%clk 00:01:59]} h6 {[%emt 00:00:20] [%clk 00:06:29]} 28.
Qe4 {[%emt 00:00:22] [%clk 00:01:47]} g6 {[%emt 00:00:17] [%clk 00:06:22]} 29.
Qe3 {[%emt 00:00:55] [%clk 00:01:02]} Kg7 {[%emt 00:00:18] [%clk 00:06:13]} 30.
h3 {[%emt 00:00:29] [%clk 00:00:43]} Nc6 {[%emt 00:00:27] [%clk 00:05:56]} 31.
f4 {[%emt 00:00:36] [%clk 00:00:17]} Nxd4 {[%emt 00:00:15] [%clk 00:05:51]} 32.
Nxd4 {[%emt 00:00:04] [%clk 00:00:24]} Rxd4 {[%emt 00:00:01] [%clk 00:06:00]}
33. Rxd4 {[%emt 00:00:04] [%clk 00:00:30]} Rxd4 {[%emt 00:00:05] [%clk
00:06:05]} 34. Qg3 {[%emt 00:00:14] [%clk 00:00:26]} Qd6 {[%emt 00:00:03] [%clk
00:06:11]} 35. Rf1 {[%emt 00:00:07] [%clk 00:00:29]} Bd5 {[%emt 00:00:38] [%clk
00:05:43]} 36. Qf2 {[%emt 00:00:04] [%clk 00:00:35]} Bb7 {[%emt 00:00:04] [%clk
00:05:50]} 37. f5 {[%emt 00:00:06] [%clk 00:00:38]} Rd2 {[%emt 00:00:03] [%clk
00:05:57]} 0-1

[Site "Europe Echecs"]